Cogmind - Beta 16.1 @@@ ROGUE MODE // 2026.06.22 @ 23:47:58 Player: Berg Result: Destroyed by S-43 Plague with Heavy Machine Gun Performance ------------- Evolutions (8) 4000 Regions Visited (19) 3800 Robots Destroyed (202) 1010 Value Destroyed (9166) 9166 Prototype IDs (51) 1020 Alien Tech Used (0) 0 Bonus (1699) 1699 TOTAL SCORE: 20695 Bonus ------- High Alert Combat Kills 478 Follower Combat Kills 221 Entered Garrisons 200 Used RIF Installer 500 Aligned with FarCom 300 Cogmind --------- Core Integrity 0/1450 Matter 99/300 Energy 66/100 System Corruption 2% Temperature Cool (0) Movement Core (100) Ox1 Location -2/Research Parts ------- > --- POWER (3) -------- (None) > --- PROPULSION (6) --- (None) > --- UTILITY (10) ----- (None) > --- WEAPON (4) ------- Vibroblade > --- INVENTORY (5) ---- Gamma Bomb Array Force Lance Force Lance Force Lance Peak State ------------ > --- POWER ------------ Light Antimatter Reactor Micro Antimatter Reactor > --- PROPULSION ------- Improved Heavy Treads Improved Thunder Leg Improved Thunder Leg Improved Thunder Leg Enhanced Biometal Leg > --- UTILITY ---------- Advanced Heat Sink Advanced Coolant Injector Medium Storage Unit Precision Energy Filter Advanced Particle Charger Advanced Kinecellerator Advanced Weapon Cycler Layered Light Armor Plating Advanced Hacking Suite > --- WEAPON ----------- Phase Gun Dispersion Rifle Dispersion Rifle Quantum Rifle > --- INVENTORY -------- Light Antimatter Reactor Particle Reactor Micro Antimatter Reactor Wheel High-density Centrium Wheel Q-thruster Advanced Particle Charger Compact HERF Cannon Gamma Bomb Array Micro-nuke Launcher [Rating: 152] Favorites ----------- Power Heavy Ion Engine Engine Heavy Ion Engine Power Core Light Nuclear Core Reactor Light Antimatter Reactor Propulsion Light Treads Treads Light Treads Leg Improved Thunder Leg Wheel Wheel Flight Unit Nuclear Pulse Array Utility Improved Heat Sink Device Improved Heat Sink Storage Large Storage Unit Processor Advanced Targeting Computer Hackware Advanced Hacking Suite Protection Hardened Light Armor Plating Weapon Field Laser Energy Gun Field Laser Energy Cannon Heavy Plasma Cannon Ballistic Gun Enhanced Autogun Launcher Micro-nuke Launcher Impact Weapon Heavy Mace Slashing Weapon Vibroblade Piercing Weapon Force Lance Special Melee Weapon Advanced Datajack Build | -11 -10 -10 -10 -9 -8 -8 -8 -8 -8 -6 -6 -6 -6 -6 -5 -4 -3 -3 -2 ------- Run | Yrd Mat Min Exi Min Mat Gar Sto Rec Scr Fac Was Fac Low Low Fac Fac Res Arm Res Slots Evolved 16 | . . . . . 4 . . . . 4 . . . . 2 2 2 . 2 Power 2 | . . . . . . . . . . 1 . . . . . . . . 1 Propulsion 4 | . . . . . . . . . . . . . . . . 2 2 . . Utility 8 | . . . . . 3 . . . . 3 . . . . 1 . . . 1 Weapon 2 | . . . . . 1 . . . . . . . . . 1 . . . . Parts Attached 237 | 7 6 4 1 2 23 21 7 . . 25 3 4 14 . 45 19 28 18 10 Power 26 | 1 1 2 . . 2 1 1 . . 3 . . 1 . 7 . 4 2 1 Engine 8 | 1 . 1 . . . . 1 . . 1 . . 1 . 3 . . . . Core 11 | . 1 1 . . 2 1 . . . 2 . . . . 4 . . . . Reactor 7 | . . . . . . . . . . . . . . . . . 4 2 1 Propulsion 55 | 2 . . 1 . 6 3 3 . . 5 2 2 2 . 10 6 8 3 2 Treads 17 | 2 . . 1 . 4 2 3 . . . . . . . . 3 1 . 1 Leg 11 | . . . . . . 1 . . . . . 1 2 . 1 . 4 2 . Wheel 21 | . . . . . 2 . . . . 5 1 . . . 8 2 3 . . Hover . | . . . . . . . . . . . . . . . . . . . . Flight 6 | . . . . . . . . . . . 1 1 . . 1 1 . 1 1 Utility 93 | 2 3 1 . 2 10 9 . . . 11 1 1 8 . 16 7 11 8 3 Device 45 | 1 . 1 . . 5 3 . . . 5 . . 2 . 9 3 8 7 1 Storage 10 | 1 2 . . . 1 . . . . 2 . . . . 1 . 2 . 1 Processor 16 | . . . . . 2 2 . . . 2 1 1 4 . 4 . . . . Hackware 6 | . . . . . . . . . . 1 . . . . . 3 . 1 1 Protection 16 | . 1 . . 2 2 4 . . . 1 . . 2 . 2 1 1 . . Artifact . | . . . . . . . . . . . . . . . . . . . . Weapon 63 | 2 2 1 . . 5 8 3 . . 6 . 1 3 . 12 6 5 5 4 Energy Gun 34 | 1 1 . . . 5 4 1 . . 6 . 1 1 . 7 1 5 1 . Energy Cannon 4 | . . . . . . . . . . . . . . . 2 1 . . 1 Ballistic Gun 14 | 1 1 1 . . . 4 1 . . . . . 2 . . . . 4 . Ballistic Cannon . | . . . . . . . . . . . . . . . . . . . . Launcher 4 | . . . . . . . 1 . . . . . . . 1 1 . . 1 Special Weapon . | . . . . . . . . . . . . . . . . . . . . Impact Weapon 2 | . . . . . . . . . . . . . . . 2 . . . . Slashing Weapon 2 | . . . . . . . . . . . . . . . . 1 . . 1 Piercing Weapon 1 | . . . . . . . . . . . . . . . . . . . 1 Special Melee Weapon 2 | . . . . . . . . . . . . . . . . 2 . . . Unidentified Prototypes 17 | . . 1 . . . . 3 . . . . . . . . 2 4 5 2 Corrupted Parts 2 | . . . . . . . . . . . . . . . 2 . . . . System Corruption 11 | . . . . . . . . . . . . . . . 11 . . . . Parts Lost 98 | . . . . . 2 13 . . . 9 5 . 1 3 39 7 . 17 2 Power 10 | . . . . . . 1 . . . . 1 . . 1 5 . . 2 . Propulsion 23 | . . . . . 1 2 . . . 3 2 . . . 7 2 . 4 2 Utility 37 | . . . . . . 6 . . . 4 1 . . 2 16 4 . 4 . Weapon 28 | . . . . . 1 4 . . . 2 1 . 1 . 11 1 . 7 . Highest Loss Streak 14 | . . . . . 2 9 . . . 3 5 . 1 3 14 7 . 14 1 To Critical Strikes . | . . . . . . . . . . . . . . . . . . . . Average Backups 11 | 2 8 12 13 14 13 14 14 15 15 18 13 4 4 5 11 3 4 9 4 Power 1 | . 1 1 1 1 1 1 2 2 2 1 1 . . . . . . 2 . Propulsion 2 | 1 2 2 1 1 1 1 1 1 1 1 . . 1 2 5 1 1 . . Utility 5 | . 2 6 8 9 7 8 8 9 9 9 6 1 1 2 2 1 . . . Weapon 2 | . 1 2 3 3 3 3 3 3 3 5 5 2 1 1 2 1 2 5 3 Tool/Special . | . . . . . . . . . . . . . . . . . . . . Unused Backups 46 | . 2 3 . . 6 . 3 . . 1 12 . 3 . 5 4 . 4 3 Power 5 | . 1 1 . . . . . . . . 2 . . . 1 . . . . Propulsion 8 | . . 2 . . . . . . . . . . 2 . 3 . . 1 . Utility 17 | . 1 . . . 3 . 2 . . . 8 . . . 1 2 . . . Weapon 16 | . . . . . 3 . 1 . . 1 2 . 1 . . 2 . 3 3 Tool/Special . | . . . . . . . . . . . . . . . . . . . . Average Slot Usage (%) 83 | . 99 100 100 100 94 94 99 100 100 95 58 18 49 71 74 31 77 93 7 Engine 2 | . 1 . . . . . 8 9 9 7 . . 2 2 1 . . . . Core 5 | . 12 13 14 14 9 8 . . . 5 7 . . . 5 . . . . Treads 10 | . 28 28 28 28 16 14 18 18 18 2 . . . . . 6 . 2 . Leg 2 | . . . . . . . . . . . . 2 5 13 2 . 10 22 . Wheel 2 | . . . . . 1 2 . . . 9 6 . . . 6 1 10 . . Device 12 | . 1 . 14 . 18 14 18 18 18 19 7 . 4 7 11 5 19 30 . Storage 6 | . 14 14 14 14 9 9 9 9 9 6 3 . . . 4 . . 3 . Processor 8 | . . . . . 5 7 9 9 9 13 12 7 22 21 19 . . . . Hackware 1 | . . . . . . . . . . 3 3 . . . . 6 7 3 2 Protection 6 | . 12 13 . 14 9 10 9 9 9 5 3 . 4 13 4 . 3 1 . Energy Gun 14 | . 14 14 14 14 24 22 18 18 18 17 11 4 1 6 9 3 16 17 . Ballistic Gun 5 | . 14 14 14 14 1 4 8 9 9 2 . 2 7 6 1 . . . . Peak Build Rating 152 | 7 11 21 22 18 30 32 34 34 34 52 51 16 53 53 75 80 152 152 30 Average Rating 40 | 5 10 12 21 17 26 28 32 34 34 46 28 10 28 41 48 48 117 145 11 On Entrance 29 | . 7 11 21 22 18 30 32 34 34 34 51 2 1 53 39 13 39 148 6 Avg Prop Armor Cover (%) 7 | . . . . . 7 6 . . . 3 . . . . 4 15 5 8 . Naked Turns 175 | . . . . . . . . . . . 50 29 24 . 6 . . 1 65 Heaviest Build 135 | 12 33 36 34 40 46 45 45 44 44 135 111 7 29 19 102 34 76 88 43 Greatest Support 157 | 40 40 40 40 40 40 40 42 42 42 42 20 16 40 40 40 145 114 157 30 Greatest Overweight (x) 17 | . . . . . 4 4 1 1 1 11 10 1 1 . 17 4 2 . 1 Average Overweight (x) 1 | . . . . . . 1 . 1 1 3 1 . . . 4 . . . . Largest Inventory Capacity 25 | 8 15 15 15 15 15 15 15 15 15 25 25 5 5 5 20 5 10 10 10 Average Capacity 13 | 5 11 15 15 15 15 15 15 15 15 21 16 5 5 5 19 5 5 9 5 Most Carried 25 | 4 10 15 15 15 15 15 15 15 15 25 21 5 5 5 20 5 10 10 5 Average Carried 11 | 2 8 13 14 15 14 14 14 15 15 18 13 4 4 5 11 4 5 9 4 Final Capacity 25 | 8 15 15 15 15 15 15 15 15 15 25 5 5 5 5 5 5 10 5 5 Final Carried 21 | 4 10 15 15 15 15 14 15 15 15 21 5 5 5 5 5 3 10 3 4 Class Distribution -------------------- 25% | Mutant 16% | Scavenger-Skirmisher 14% | Scavenger-Gunner 11% | Derelict-Mutant 10% | Commander-Skirmisher 7% | Scavenger-Mutant 3% | Scavenger-Tank 3% | Commander-Gunner Dominant Class ---------------- Mutant | -10/Materials Mutant | -10/Mines Mutant | -10/Exiles Mutant | -9/Mines Scavenger-Skirmisher | -8/Materials Scavenger-Skirmisher | -8/Garrison Commander-Skirmisher | -8/Storage Commander-Skirmisher | -8/Recycling Commander-Gunner | -8/Scraptown Scavenger-Gunner | -6/Factory Scavenger-Gunner | -6/Waste Mutant | -6/Factory Derelict-Mutant | -6/Lower Caves Derelict-Mutant | -6/Lower Caves Scavenger-Mutant | -5/Factory Mutant | -4/Factory Hacker-Gunner | -3/Research Scavenger-Gunner | -3/Armory Mutant | -2/Research Resources | -11 -10 -10 -10 -9 -8 -8 -8 -8 -8 -6 -6 -6 -6 -6 -5 -4 -3 -3 -2 ----------- Run | Yrd Mat Min Exi Min Mat Gar Sto Rec Scr Fac Was Fac Low Low Fac Fac Res Arm Res Matter Collected 4332 | 270 357 111 . 122 235 494 172 32 . 346 . . 383 36 648 340 410 254 122 Remotely . | . . . . . . . . . . . . . . . . . . . . Salvage Created 10035 | 13 554 247 . 235 864 1278 352 . . 1569 . . 405 90 2065 294 643 1289 137 Parts 461 | 2 28 22 . 8 35 51 15 . . 46 . . 21 10 108 12 24 68 11 Haulers Intercepted 4 | . 2 . . . . . 1 . . 1 . . . . . . . . . Recyclers Shooed 6 | . 2 . . . . . 1 . . 3 . . . . . . . . . Parts Field Recycled . | . . . . . . . . . . . . . . . . . . . . Retrieved Matter . | . . . . . . . . . . . . . . . . . . . . Parts Self-Destructed 23 | . . . . . . . . . . . . . 13 10 . . . . . Prevented 2 | . . . . . . . . . . . . . 1 1 . . . . . Parts Restored . | . . . . . . . . . . . . . . . . . . . . Kills | -11 -10 -10 -10 -9 -8 -8 -8 -8 -8 -6 -6 -6 -6 -6 -5 -4 -3 -3 -2 ------- Run | Yrd Mat Min Exi Min Mat Gar Sto Rec Scr Fac Was Fac Low Low Fac Fac Res Arm Res Combat Hostiles Destroyed 161 | . 10 9 . 5 20 30 4 . . 19 . . 5 3 23 5 5 19 4 Melee 6 | . . . . . . . . . . . . . . . 3 2 . . 1 Guns 135 | . 10 9 . 5 20 29 4 . . 19 . . 5 3 7 . 5 19 . Cannons 10 | . . . . . . . . . . . . . . . 7 . . . 3 AOE 6 | . . . . . . . . . . . . . . . 3 3 . . . Classes Destroyed 18 | 1 5 . . 1 5 3 . . . 1 . . 1 . 1 . . . . Worker 14 | . . . . . 2 . 2 . . 1 . . . . 6 2 . . 1 Tunneler 4 | 1 . . . . . . . . . 1 . . . . 2 . . . . Hauler 4 | . 2 . . . . . 1 . . 1 . . . . . . . . . Recycler 13 | . 1 1 . . . . . . . 4 . . . . 4 1 2 . . Minesweeper 1 | . . . . . . . . . . . . . 1 . . . . . . Mechanic 2 | . . . . . 1 . 1 . . . . . . . . . . . . Operator 2 | . 1 . . . . . . . . . . . . . . . . 1 . Watcher 1 | . . . . . 1 . . . . . . . . . . . . . . Swarmer 33 | . 2 6 . . 6 3 . . . 3 . . . 3 . . . 6 4 Cutter 2 | . . . . . . 2 . . . . . . . . . . . . . Grunt 64 | . 8 3 . 4 9 17 2 . . 6 . . 5 . 3 4 . 3 . Brawler 4 | . . . . . 1 1 . . . . . . . . 2 . . . . Duelist 5 | . . . . 1 1 . . . . . . . . . 1 . . 2 . Sentry 18 | . . . . . 3 3 2 . . 4 . . . . . . 2 4 . Specialist 8 | . . . . . . 3 . . . 2 . . . . 2 . . 1 . Hunter 7 | . . . . . . 1 . . . 2 . . . . 4 . . . . Programmer 19 | . . . . . . . . . . 2 . . . . 10 1 3 3 . Heavy 1 | . . . . . . . . . . . . . . . 1 . . . . Best Kill Streak 9 | 1 2 3 . 3 6 3 4 . . 4 . . 2 3 5 4 2 9 4 Combat Bots Only 9 | . 2 3 . 3 6 3 2 . . 4 . . 1 3 3 3 2 9 4 Max Kills in Single Turn 3 | 1 1 2 . 1 2 1 2 . . 1 . . 1 1 3 3 1 2 1 Gunslinging 1 | . . 1 . . 1 . . . . . . . . . . . . 1 . Exploded 2 | . . . . . . . . . . . . . . . 2 2 . . . Melee 1 | . . . . . . . . . . . . . . . 1 1 . . 1 Uniques/NPCs Destroyed . | . . . . . . . . . . . . . . . . . . . . Combat | -11 -10 -10 -10 -9 -8 -8 -8 -8 -8 -6 -6 -6 -6 -6 -5 -4 -3 -3 -2 -------- Run | Yrd Mat Min Exi Min Mat Gar Sto Rec Scr Fac Was Fac Low Low Fac Fac Res Arm Res Hostile Shots Fired 1312 | . 24 30 . 23 46 166 32 . . 185 5 15 29 22 236 147 24 170 158 Missed 379 | . 5 11 . 5 16 33 14 . . 55 1 8 10 5 65 39 4 45 63 Hits 933 | . 19 19 . 18 30 133 18 . . 130 4 7 19 17 171 108 20 125 95 Melee 18 | . . . . 2 3 1 . . . . 4 . . . 7 . . 1 . Projectile 915 | . 19 19 . 16 27 132 18 . . 130 . 7 19 17 164 108 20 124 95 AOE 1 | . . . . . . 1 . . . . . . . . . . . . . Critical Strikes 34 | . . . . . 1 3 . . . 1 2 . 1 . 13 7 1 2 3 Part Disruptions 3 | . . . . . . . . . . . . . . . 1 . 1 1 . Damage Taken 17174 | . 213 167 . 292 522 2215 334 131 . 1047 169 133 377 264 3758 2151 467 3020 1914 Core 4485 | . 33 . . 33 66 366 16 66 . 173 133 133 117 28 755 447 21 634 1464 Absorbed by Shields 267 | . . . . . . . . . . 212 . . . . . . 21 34 . Ignored by Resistances 200 | . . . . . . . . . . . . . . . 200 . . . . Core Remaining (%) 49 | 100 . . . 73 . . . . 6 . . . . 31 24 61 . 49 . Volleys Fired 511 | 2 48 14 . 12 44 90 17 . . 50 . . 33 7 93 33 17 42 9 Largest 4 | 1 2 2 . 2 3 3 3 . . 3 . . 2 2 4 1 4 4 1 Hottest 358 | 50 85 88 . 88 184 191 147 . . 240 . . 50 95 320 98 358 358 120 Shots Fired 1179 | 2 95 28 . 24 128 217 51 . . 149 . . 51 14 162 33 61 155 9 Gun 1108 | 2 95 28 . 24 128 217 51 . . 149 . . 51 14 107 26 61 155 . Cannon 59 | . . . . . . . . . . . . . . . 46 4 . . 9 Launcher 12 | . . . . . . . . . . . . . . . 9 3 . . . Special . | . . . . . . . . . . . . . . . . . . . . Kinetic 290 | . 48 14 . 13 6 55 17 . . 24 . . 51 7 12 . . 43 . Thermal 835 | 2 47 14 . 11 122 162 34 . . 125 . . . . 106 30 61 112 9 Explosive 12 | . . . . . . . . . . . . . . . 9 3 . . . Electromagnetic 42 | . . . . . . . . . . . . . . 7 35 . . . . Robot Hit Streak 36 | 2 12 5 . 13 19 12 22 . . 30 . . 36 6 29 20 7 16 2 Robot Miss Streak 11 | . 11 3 . 2 2 4 2 . . 2 . . 1 4 6 3 5 3 4 Penetration Max 1 | . . . . . . . 1 . . . . . . . . . . 1 . Secondary Targets 23 | . . 2 . 1 4 4 1 . . 3 . . . 1 1 . . 6 . Max Gunslinging Chain 1 | . . 1 . 1 1 1 1 . . 1 . . . 1 1 . . 1 . Capacitor 1 | . . . . . . . . . . . . . . . . 1 . . . Shots Hit Robots 803 | 2 54 15 . 19 96 132 36 . . 121 . . 45 13 125 25 34 79 7 Core Hits 410 | 1 27 10 . 9 45 62 10 . . 87 . . 22 8 50 19 12 44 4 Critical Kills 16 | . . . . . . 1 . . . . . . . . 2 . 4 9 . Critical Parts Destroyed 24 | . 2 . . . . 1 . . . . . . 2 . 6 . 5 8 . Critical Strikes 63 | . 5 . . 1 2 8 1 . . 2 . . 2 . 9 1 10 22 . Burn 18 | . 3 . . 1 2 6 1 . . 2 . . . . . 1 . 2 . Meltdown 1 | . . . . . . . . . . . . . . . 1 . . . . Destroy 40 | . 2 . . . . 2 . . . . . . 2 . 4 . 10 20 . Corrupt 1 | . . . . . . . . . . . . . . . 1 . . . . Smash 3 | . . . . . . . . . . . . . . . 3 . . . . Melee Attacks 34 | . . . . . . . . . . . . . . . 24 . . . 10 Impact 24 | . . . . . . . . . . . . . . . 24 . . . . Slashing 7 | . . . . . . . . . . . . . . . . . . . 7 Piercing 3 | . . . . . . . . . . . . . . . . . . . 3 Sneak Attacks 4 | . . . . . . . . . . . . . . . 2 . . . 2 Combat Hostiles . | . . . . . . . . . . . . . . . . . . . . Follow-up Attacks . | . . . . . . . . . . . . . . . . . . . . Damage Inflicted 19824 | 26 716 272 . 301 1542 2203 707 . . 2988 . . 698 162 4763 1580 1221 2161 484 Guns 15109 | 26 695 270 . 301 1532 2203 696 . . 2985 . . 672 162 1532 653 1221 2161 . Cannons 1603 | . . . . . . . . . . . . . . . 1359 31 . . 213 Explosions 1838 | . . . . . . . . . . . . . . . 979 859 . . . Melee 1152 | . . . . . . . . . . . . . . . 893 . . . 259 Ramming 122 | . 21 2 . . 10 . 11 . . 3 . . 26 . . 37 . . 12 Kinetic 2994 | . 256 102 . 143 55 593 277 . . 279 . . 672 98 148 . . 371 . Thermal 13132 | 26 439 168 . 158 1477 1610 419 . . 2706 . . . . 2221 684 1221 1790 213 Explosive 1804 | . . . . . . . . . . . . . . . 945 859 . . . Electromagnetic 620 | . . . . . . . . . . . . . . 64 556 . . . . Impact 893 | . . . . . . . . . . . . . . . 893 . . . . Slashing 259 | . . . . . . . . . . . . . . . . . . . 259 Piercing . | . . . . . . . . . . . . . . . . . . . . Highest Corruption 25 | . 4 4 4 4 . 2 2 2 . 1 1 1 1 1 25 9 1 1 2 Average Corruption 5 | . 3 4 4 4 . 2 2 2 . 1 1 1 1 1 15 7 1 1 1 Corruption Purged 1 | . . . . . . . . . . . . . . . 1 . . . . Corruption Blocked . | . . . . . . . . . . . . . . . . . . . . Effects 203 | . 3 17 9 13 . 3 10 17 . 4 . 3 6 . 103 7 1 7 . Message Errors 43 | . 2 4 3 4 . . 3 4 . . . . . . 21 1 . 1 . Matter Fused 52 | . . 6 3 3 . 1 3 5 . 1 . . 2 . 26 1 . 1 . Heat Flow Errors 31 | . . 2 2 2 . . 3 7 . . . . . . 13 . . 2 . Energy Discharges 21 | . 1 2 1 . . 1 . . . . . 1 1 . 14 . . . . Parts Fused 2 | . . . . . . . . . . . . . 1 . 1 . . . . Data Loss (minor) 26 | . . 3 . . . 1 . . . 2 . 1 1 . 13 2 1 2 . Data Loss (major) 8 | . . . . 2 . . 1 . . . . . . . 4 1 . . . Misfires 5 | . . . . 1 . . . . . . . . . . 3 1 . . . Alerts 4 | . . . . . . . . 1 . . . 1 . . 2 . . . . Misdirections 2 | . . . . . . . . . . . . . . . 2 . . . . Weapon Failures 9 | . . . . 1 . . . . . 1 . . 1 . 4 1 . 1 . Overload Shots . | . . . . . . . . . . . . . . . . . . . . Overflow Damage 428 | . . . . . . . . . . . . . . . 428 . . . . Projectiles 106 | . . . . . . . . . . . . . . . 106 . . . . Explosions 93 | . . . . . . . . . . . . . . . 93 . . . . Melee 229 | . . . . . . . . . . . . . . . 229 . . . . Knockbacks 6 | . 1 . . . . . . . . . . . . . 4 . . . 1 Impact 6 | . 1 . . . . . . . . . . . . . 4 . . . 1 Kinetic . | . . . . . . . . . . . . . . . . . . . . Secondary . | . . . . . . . . . . . . . . . . . . . . Self-Inflicted Damage 239 | . . . . . . . . . . 1 . . 12 . 205 20 . . 1 Shots 5 | . . . . . . . . . . . . . . . 4 1 . . . Rammed 37 | . 3 1 . . 1 . 3 . . 2 . . 2 . . 21 . . 4 Targets Rammed 41 | . 3 1 . . 1 . 4 . . 2 . . 2 . . 23 . . 5 Kicked . | . . . . . . . . . . . . . . . . . . . . Crushed 4 | . . . . . . . 1 . . . . . . . . 2 . . 1 Highest Temperature 836 | 20 268 252 95 292 202 603 126 242 . 432 . . 15 4 836 402 196 677 272 Average Temperature 132 | 10 60 110 48 140 59 208 24 101 . 98 . . 9 3 241 41 108 190 143 Received Heat Transfer 3665 | . 99 24 . 108 180 1053 153 72 . 228 . 63 162 . 594 509 30 345 45 Effects 59 | . . . . . . 15 . . . . . . . . 28 . . 15 1 Shutdowns 17 | . . . . . . 3 . . . . . . . . 10 . . 4 . Energy Bleed 3 | . . . . . . 1 . . . . . . . . 2 . . . . Interference 9 | . . . . . . 3 . . . . . . . . 2 . . 3 1 Matter Decay 6 | . . . . . . 2 . . . . . . . . 3 . . 1 . Short Circuit 4 | . . . . . . 2 . . . . . . . . 1 . . 1 . Damage (minor) 7 | . . . . . . 3 . . . . . . . . 3 . . 1 . Damage (major) 11 | . . . . . . . . . . . . . . . 7 . . 4 . Damage (core) 2 | . . . . . . 1 . . . . . . . . . . . 1 . Siege Activations . | . . . . . . . . . . . . . . . . . . . . Martial Activations . | . . . . . . . . . . . . . . . . . . . . Shielding Activations . | . . . . . . . . . . . . . . . . . . . . Robots Disrupted 1 | . . . . . . . . . . . . . . 1 . . . . . Combat Hostiles 1 | . . . . . . . . . . . . . . 1 . . . . . Robots Corrupted 3 | . . . . . . . . . . . . . . . 3 . . . . Combat Hostiles 3 | . . . . . . . . . . . . . . . 3 . . . . Parts Fried 8 | . . . . . . . . . . . . . 1 . 7 . . . . Impact Corruptions 7 | . . . . . . . . . . . . . . . 7 . . . . Robots Melted 2 | . . . . . . 1 . . . . . . . . 1 . . . . Combat Hostiles 1 | . . . . . . 1 . . . . . . . . . . . . . Parts Melted 54 | . 1 . . . 1 8 4 . . 17 . . . . 16 . 3 4 . Heat Transferred 24117 | 74 1258 370 . 444 3626 4007 1036 . . 5795 . . . . 3054 975 1258 2035 185 Parts Sabotaged 4 | . . . . . . . . . . . . . . . . . . 4 . Parts Stolen . | . . . . . . . . . . . . . . . . . . . . Parts Stripped . | . . . . . . . . . . . . . . . . . . . . Power Chain Reactions 1 | . . . . . . . . . . . . . . . 1 . . . . Alert | -11 -10 -10 -10 -9 -8 -8 -8 -8 -8 -6 -6 -6 -6 -6 -5 -4 -3 -3 -2 ------- Run | Yrd Mat Min Exi Min Mat Gar Sto Rec Scr Fac Was Fac Low Low Fac Fac Res Arm Res Maximum Alert Level 4 | . . . . . 1 4 2 . . . . . . . 2 1 . 1 1 Low Security (%) 64 | 100 100 100 . 100 61 8 . 100 . 100 100 100 . . 53 36 100 90 90 Level 1 20 | . . . . . 38 32 37 . . . . . . . 31 63 . 9 9 Level 2 10 | . . . . . . 22 62 . . . . . . . 15 . . . . Level 3 3 | . . . . . . 30 . . . . . . . . . . . . . Level 4 . | . . . . . . 5 . . . . . . . . . . . . . Level 5 . | . . . . . . . . . . . . . . . . . . . . High Security . | . . . . . . . . . . . . . . . . . . . . Max Security . | . . . . . . . . . . . . . . . . . . . . Peak Influence 1149 | 5 57 137 . 85 290 1149 593 87 . 154 24 . . . 437 394 101 359 309 Initial 559 | . . . . . 16 180 559 87 . . 24 . . . 23 195 76 33 141 Average 182 | . 15 35 . 17 103 593 412 9 . 53 5 . . . 183 249 25 70 144 Influence Increases 6346 | 5 351 230 . 179 598 1099 335 45 . 544 . . 280 60 1055 350 186 691 338 Destroy 0b10 Robot/C 3360 | . 200 180 . 140 400 600 160 20 . 380 . . 100 60 460 100 100 380 80 Destroy 0b10 Robot/NC 205 | 5 20 5 . . 20 . 20 . . 35 . . 5 . 60 15 10 5 5 Destroy Leader 670 | . 74 30 . 20 82 40 42 . . 112 . . 10 . 120 10 30 90 10 Allied During Kill 82 | . . . . 4 . . 67 11 . . . . . . . . . . . Successful Hack 148 | . 25 . . . 20 14 15 14 . . . . . . 55 . . 5 . Disable Machine 450 | . . 15 . 15 . . 15 . . . . . . . 240 60 . 75 30 Anti-Garrison Action 400 | . . . . . . 400 . . . . . . . . . . . . . Destroy Structure 356 | . 2 . . . 1 . 1 . . 2 . . . . 90 120 46 76 18 Partial Spotted 45 | . . . . . 15 . . . . . . . . . . 15 . . 15 Lose Combat Pursuer 630 | . 30 . . . 60 45 15 . . 15 . . 165 . 30 30 . 60 180 Influence Decreases 6037 | 5 351 131 99 137 362 228 1258 271 . 474 70 . 245 58 693 602 268 485 300 Entered New Map 1457 | . . . 99 . 26 98 590 139 . . 46 . . 8 14 204 71 32 130 Time Decay 3450 | 5 351 131 . 97 316 . 478 132 . 384 24 . 235 20 329 318 197 283 150 Lost Part 890 | . . . . . 20 130 . . . 90 . . 10 30 350 70 . 170 20 Lost Ally 90 | . . . . 40 . . 40 . . . . . . . . 10 . . . Purge Threat 150 | . . . . . . . 150 . . . . . . . . . . . . Squads Dispatched 37 | . 5 1 . 1 3 . 2 . . 5 . 2 . . 9 2 1 2 4 Investigation 7 | . 2 1 . . . . 1 . . 2 . 1 . . . . . . . Extermination 11 | . . . . . . . . . . 1 . . . . 6 1 1 1 1 Reinforcement 14 | . 3 . . . . . 1 . . 1 . 1 . . 3 1 . 1 3 Assault 1 | . . . . 1 . . . . . . . . . . . . . . . Garrison 4 | . . . . . 3 . . . . 1 . . . . . . . . . Intercept . | . . . . . . . . . . . . . . . . . . . . Searches Triggered . | . . . . . . . . . . . . . . . . . . . . Construction Impeded 1 | . . . . . . . . . . . . . . . 1 . . . . Haulers Reinforced 1 | . . . . . . . . . . . . . . . . . . . 1 Active Scanning Responses . | . . . . . . . . . . . . . . . . . . . . Cargo Convoy Interrupts . | . . . . . . . . . . . . . . . . . . . . Stealth | -11 -10 -10 -10 -9 -8 -8 -8 -8 -8 -6 -6 -6 -6 -6 -5 -4 -3 -3 -2 --------- Run | Yrd Mat Min Exi Min Mat Gar Sto Rec Scr Fac Was Fac Low Low Fac Fac Res Arm Res Distress Signals 20 | . 4 . . . 6 . 2 . . 3 . . . . 1 . 1 1 2 Communications Jammed . | . . . . . . . . . . . . . . . . . . . . Distress Signals . | . . . . . . . . . . . . . . . . . . . . Times Spotted 311 | . 33 11 . 11 38 31 18 . . 23 6 6 15 4 32 8 7 33 35 Peak Tracking Total 18 | . 3 3 . 4 7 4 5 . . 4 6 6 4 4 6 4 4 10 18 Tactical Retreats 25 | . 2 . . . 4 2 1 . . 1 . . 6 . 2 1 . 1 5 Traps | -11 -10 -10 -10 -9 -8 -8 -8 -8 -8 -6 -6 -6 -6 -6 -5 -4 -3 -3 -2 ------- Run | Yrd Mat Min Exi Min Mat Gar Sto Rec Scr Fac Was Fac Low Low Fac Fac Res Arm Res Traps Triggered 21 | . 4 . . . 1 6 . . . 2 . . . . 1 . 6 1 . Indirectly . | . . . . . . . . . . . . . . . . . . . . Trap Hack Attempts . | . . . . . . . . . . . . . . . . . . . . Triggered . | . . . . . . . . . . . . . . . . . . . . Disarmed . | . . . . . . . . . . . . . . . . . . . . Reprogrammed . | . . . . . . . . . . . . . . . . . . . . Reused . | . . . . . . . . . . . . . . . . . . . . Traps Extracted . | . . . . . . . . . . . . . . . . . . . . Installed . | . . . . . . . . . . . . . . . . . . . . Triggered . | . . . . . . . . . . . . . . . . . . . . Machines | -11 -10 -10 -10 -9 -8 -8 -8 -8 -8 -6 -6 -6 -6 -6 -5 -4 -3 -3 -2 ---------- Run | Yrd Mat Min Exi Min Mat Gar Sto Rec Scr Fac Was Fac Low Low Fac Fac Res Arm Res Machines Disabled 34 | . . 1 . 1 . 4 1 . . . . . . . 16 4 . 5 2 Max in Single Turn 12 | . . 1 . 1 . 1 . . . . . . . . 12 2 . 1 1 Garrison Access 3 | . . . . . . . . . . 1 . . . . . 1 1 . . Garrison Relay 4 | . . . . . . 4 . . . . . . . . . . . . . Energy Cycler 1 | . . . . . . . . . . . . . . . . . . 1 . Machines Repaired . | . . . . . . . . . . . . . . . . . . . . Machines Dismantled . | . . . . . . . . . . . . . . . . . . . . Machines Sabotaged . | . . . . . . . . . . . . . . . . . . . . Overloaded Fab Kills . | . . . . . . . . . . . . . . . . . . . . Hacking | -11 -10 -10 -10 -9 -8 -8 -8 -8 -8 -6 -6 -6 -6 -6 -5 -4 -3 -3 -2 --------- Run | Yrd Mat Min Exi Min Mat Gar Sto Rec Scr Fac Was Fac Low Low Fac Fac Res Arm Res Machines Accessed 49 | . 5 1 2 1 6 2 5 5 1 3 . 1 2 . 5 4 1 3 2 Terminals 36 | . 4 . . . 5 2 5 5 . 1 . . 1 . 5 3 . 3 2 Fabricators 2 | . . . . . . . . . . 1 . 1 . . . . . . . Repair Stations . | . . . . . . . . . . . . . . . . . . . . Recycling Units 1 | . 1 . . . . . . . . . . . . . . . . . . Scanalyzers . | . . . . . . . . . . . . . . . . . . . . Garrison Access 4 | . . . . . 1 . . . . 1 . . . . . 1 1 . . Total Hacks 123 | . 16 1 24 1 13 3 15 9 10 4 . 2 2 . 9 7 1 4 2 Successful 77 | . 9 1 24 1 4 1 6 2 10 4 . 2 2 . 3 4 1 2 1 Failed 46 | . 7 . . . 9 2 9 7 . . . . . . 6 3 . 2 1 Catastrophic 14 | . 1 . . . 2 2 2 3 . . . . . . 1 2 . 1 . Database Lockouts . | . . . . . . . . . . . . . . . . . . . . Manual 31 | . 11 . 1 . 9 . 4 2 . . . . . . 2 2 . . . Terminals 76 | . 14 . . . 12 3 15 9 . 1 . . 1 . 9 6 . 4 2 Fabricators 4 | . . . . . . . . . . 2 . 2 . . . . . . . Repair Stations . | . . . . . . . . . . . . . . . . . . . . Recycling Units 2 | . 2 . . . . . . . . . . . . . . . . . . Scanalyzers . | . . . . . . . . . . . . . . . . . . . . Garrison Access 4 | . . . . . 1 . . . . 1 . . . . . 1 1 . . Terminal Hacks 67 | . 7 1 24 1 3 1 6 2 10 1 . . 2 . 3 3 . 2 1 Record 34 | . . . 23 . . . . . 10 . . . 1 . . . . . . Part Schematic 2 | . 1 . . . . . . 1 . . . . . . . . . . . Robot Analysis 4 | . 2 . . . . . 2 . . . . . . . . . . . . Prototype ID Bank 6 | . 2 . . . . . 2 1 . . . . . . 1 . . . . Open Door 5 | . . 1 . 1 . . 1 . . . . . 1 . . . . 1 . Open DSF 3 | . . . . . . . . . . 1 . . . . . 1 . . 1 Emergency Access Points 2 | . . . . . 1 1 . . . . . . . . . . . . . Terminal Index 1 | . . . . . 1 . . . . . . . . . . . . . . Unreport Threat 1 | . . . . . . . 1 . . . . . . . . . . . . Locate Traps 4 | . . . . . 1 . . . . . . . . . 1 1 . 1 . Maintenance Status 1 | . 1 . . . . . . . . . . . . . . . . . . Surveillance Status 1 | . 1 . . . . . . . . . . . . . . . . . . Reinforcement Status 1 | . . . . . . . . . . . . . . . . 1 . . . Registered Components 1 | . . . . . . . . . . . . . . . 1 . . . . Proto ID Catalog 1 | . . . 1 . . . . . . . . . . . . . . . . Fabricator Hacks 4 | . . . . . . . . . . 2 . 2 . . . . . . . Load Schematic 2 | . . . . . . . . . . 1 . 1 . . . . . . . Build 2 | . . . . . . . . . . 1 . 1 . . . . . . . Repair Station Hacks . | . . . . . . . . . . . . . . . . . . . . Recycling Unit Hacks . | . . . . . . . . . . . . . . . . . . . . Scanalyzer . | . . . . . . . . . . . . . . . . . . . . Garrison Access Hacks 4 | . . . . . 1 . . . . 1 . . . . . 1 1 . . Unlock Access 1 | . . . . . 1 . . . . . . . . . . . . . . Seal Access 3 | . . . . . . . . . . 1 . . . . . 1 1 . . Unauthorized Hacks 2 | . 2 . . . . . . . . . . . . . . . . . . Terminals . | . . . . . . . . . . . . . . . . . . . . Fabricators . | . . . . . . . . . . . . . . . . . . . . Repair Stations . | . . . . . . . . . . . . . . . . . . . . Recycling Units 2 | . 2 . . . . . . . . . . . . . . . . . . Reject 1 | . 1 . . . . . . . . . . . . . . . . . . Mask 1 | . 1 . . . . . . . . . . . . . . . . . . Scanalyzers . | . . . . . . . . . . . . . . . . . . . . Garrison Access . | . . . . . . . . . . . . . . . . . . . . Data Cores Recovered . | . . . . . . . . . . . . . . . . . . . . Used . | . . . . . . . . . . . . . . . . . . . . Hacking Detections 34 | . 4 . . . 6 2 4 5 . 1 . 1 . . 5 2 . 3 1 Full Trace Events 3 | . . . . . . . 1 . . 1 . 1 . . . . . . . Feedback Events . | . . . . . . . . . . . . . . . . . . . . Feedback Blocked . | . . . . . . . . . . . . . . . . . . . . Robot Schematics Acquired . | . . . . . . . . . . . . . . . . . . . . Robots Built . | . . . . . . . . . . . . . . . . . . . . Authchips . | . . . . . . . . . . . . . . . . . . . . Time . | . . . . . . . . . . . . . . . . . . . . Total Robot Build Rating . | . . . . . . . . . . . . . . . . . . . . Part Schematics Acquired 2 | . 1 . . . . . . 1 . . . . . . . . . . . Parts Built 2 | . . . . . . . . . . 1 . 1 . . . . . . . Authchips . | . . . . . . . . . . . . . . . . . . . . Time 102 | . . . . . . . . . . 51 . 51 . . . . . . . Total Part Build Rating 2 | . . . . . . . . . . 1 . 1 . . . . . . . Part Studies Acquired . | . . . . . . . . . . . . . . . . . . . . Parts Repaired . | . . . . . . . . . . . . . . . . . . . . Time . | . . . . . . . . . . . . . . . . . . . . Parts Recycled . | . . . . . . . . . . . . . . . . . . . . Recycled Matter . | . . . . . . . . . . . . . . . . . . . . Retrieved Matter . | . . . . . . . . . . . . . . . . . . . . Retrieved Components . | . . . . . . . . . . . . . . . . . . . . Parts Scanalyzed . | . . . . . . . . . . . . . . . . . . . . Part Schematics Acquired . | . . . . . . . . . . . . . . . . . . . . Parts Damaged . | . . . . . . . . . . . . . . . . . . . . Bothacking | -11 -10 -10 -10 -9 -8 -8 -8 -8 -8 -6 -6 -6 -6 -6 -5 -4 -3 -3 -2 ------------ Run | Yrd Mat Min Exi Min Mat Gar Sto Rec Scr Fac Was Fac Low Low Fac Fac Res Arm Res Used RIF Installer 1 | . . . . . . 1 . . . . . . . . . . . . . Robots Hacked . | . . . . . . . . . . . . . . . . . . . . Non-combat . | . . . . . . . . . . . . . . . . . . . . Combat . | . . . . . . . . . . . . . . . . . . . . Robot Hacks Applied . | . . . . . . . . . . . . . . . . . . . . Relay Couplers Released 15 | . . . . . . 15 . . . . . . . . . . . . . Machine Destruction 15 | . . . . . . 15 . . . . . . . . . . . . . Fabnet Peak Effective % . | . . . . . . . . . . . . . . . . . . . . Robots Rewired 2 | . . . . . . . . . . . . . . . . . . 2 . Allies Hacked . | . . . . . . . . . . . . . . . . . . . . Hacks Repelled . | . . . . . . . . . . . . . . . . . . . . Allies | -11 -10 -10 -10 -9 -8 -8 -8 -8 -8 -6 -6 -6 -6 -6 -5 -4 -3 -3 -2 -------- Run | Yrd Mat Min Exi Min Mat Gar Sto Rec Scr Fac Was Fac Low Low Fac Fac Res Arm Res Total Allies 15 | . . . . 2 . . 10 . . . 1 . . . . . . 2 . Largest Group 10 | . . . . 2 . . 10 8 6 6 1 . . . . . . 2 . Highest-Rated Group 173 | . . . . 62 . . 173 141 96 96 31 . . . . . . 96 . Highest-Rated Ally 48 | . . . . 31 . . 29 29 16 16 31 . . . . . . 48 . Total Orders 2 | . . . . . . . 1 . . . . . . . . 1 . . . GUARD 1 | . . . . . . . 1 . . . . . . . . . . . . EXPLORE 1 | . . . . . . . . . . . . . . . . 1 . . . Ally Attacks 73 | . . . . 9 . . 33 8 . 10 13 . . . . . . . . Total Damage 938 | . . . . 170 . . 382 116 . 80 190 . . . . . . . . Kills 7 | . . . . 2 . . 4 1 . . . . . . . . . . . Allies Corrupted . | . . . . . . . . . . . . . . . . . . . . Allies Melted . | . . . . . . . . . . . . . . . . . . . . Intel | -11 -10 -10 -10 -9 -8 -8 -8 -8 -8 -6 -6 -6 -6 -6 -5 -4 -3 -3 -2 ------- Run | Yrd Mat Min Exi Min Mat Gar Sto Rec Scr Fac Was Fac Low Low Fac Fac Res Arm Res Active Infowar (turns) 878 | 97 88 23 387 . 201 . . . . . . 82 . . . . . . . Optics 82 | . . . . . . . . . . . . 82 . . . . . . . Sensors 410 | . . 23 387 . . . . . . . . . . . . . . . . Terrain 201 | . . . . . 201 . . . . . . . . . . . . . . Seismic 185 | 97 88 . . . . . . . . . . . . . . . . . . Robot Analysis Total 4 | . 2 . . . . . 2 . . . . . . . . . . . . Derelict Logs Recovered 4 | . . 1 . 1 . . . . . . . . 2 . . . . . . Drone Launches 2 | . . . . . . . . . . . . . . . . 2 . . . Drone Recoveries 1 | . . . . . . . . . . . . . . . . 1 . . . Exploration | -11 -10 -10 -10 -9 -8 -8 -8 -8 -8 -6 -6 -6 -6 -6 -5 -4 -3 -3 -2 ------------- Run | Yrd Mat Min Exi Min Mat Gar Sto Rec Scr Fac Was Fac Low Low Fac Fac Res Arm Res Turns Passed 18417 | 133 1318 888 387 469 1244 2096 1226 1100 567 1142 147 336 1155 47 3575 705 826 741 315 Spaces Moved 9643 | 75 640 516 241 245 435 825 427 470 238 463 160 261 1183 23 1269 647 599 474 452 Core 1460 | 4 . . . . . . . . . . 110 62 864 . 20 114 1 2 283 Treads 3925 | 71 640 516 241 245 376 558 427 470 238 49 . . . . . 72 . . 22 Legs 1311 | . . . . . . . . . . . . 103 319 23 127 . 276 463 . Wheels 2257 | . . . . . 59 267 . . . 414 50 . . . 1020 199 248 . . Hover . | . . . . . . . . . . . . . . . . . . . . Flight 690 | . . . . . . . . . . . . 96 . . 102 262 74 9 147 Fastest Speed 37 | 50 160 160 160 160 110 125 160 232 232 115 50 40 50 120 40 37 40 40 40 Average Speed 142 | 154 160 160 160 160 203 200 237 232 232 159 84 83 74 120 149 75 106 111 51 Slowest Speed 900 | 160 160 160 160 160 320 240 240 232 232 245 230 120 120 120 900 250 220 115 225 Overloaded Moves . | . . . . . . . . . . . . . . . . . . . . Propulsion Burnouts . | . . . . . . . . . . . . . . . . . . . . Robots Hopped 20 | . . . . . . . . . . . . . . . . 2 . 1 17 Potential Cave-ins . | . . . . . . . . . . . . . . . . . . . . Cave-ins Triggered . | . . . . . . . . . . . . . . . . . . . . Exploration Rate (%) 46 | 4 84 89 61 58 34 71 71 94 25 15 81 7 97 6 31 22 16 28 27 Regions Visited 19 Branch Regions 9 Pre-discovered Areas 2 | . . 1 1 . . . . . . . . . . . . . . . . Known Exits Taken 2 | . . . . . 1 . . . . . . . 1 . . . . . . Unknown Exits Taken 14 | 1 1 1 1 1 . . 1 1 1 . . 1 . 1 1 1 1 1 . Scrap Searched 5 | . . 1 . . . . . . . . . . 4 . . . . . . Spaces Dug 17 | . . . . . . . . . . . . . . . 1 . 3 9 4 Terrain Destroyed 231 | . . . . . . 1 . . . . . . . . 71 76 24 53 6 Melee 5 | . . . . . . . . . . . . . . . 1 . . . 4 Projectile 63 | . . . . . . 1 . . . . . . . . 2 3 24 31 2 AOE 163 | . . . . . . . . . . . . . . . 68 73 . 22 . Terrain Rammed . | . . . . . . . . . . . . . . . . . . . . Walls Destroyed . | . . . . . . . . . . . . . . . . . . . . Machines Disabled . | . . . . . . . . . . . . . . . . . . . . Actions | -11 -10 -10 -10 -9 -8 -8 -8 -8 -8 -6 -6 -6 -6 -6 -5 -4 -3 -3 -2 --------- Run | Yrd Mat Min Exi Min Mat Gar Sto Rec Scr Fac Was Fac Low Low Fac Fac Res Arm Res Total 13322 | 87 845 554 243 298 709 1097 602 480 254 747 172 379 1405 29 2753 814 741 623 490 Wait 2521 | . 135 4 . 39 171 125 125 11 17 177 6 110 156 . 1284 72 35 52 2 Move 9588 | 74 639 515 240 244 434 823 426 469 237 463 159 260 1182 22 1268 642 598 471 422 Hop 16 | . . . . . . . . . . . . . . . . 2 . 1 13 Pick Up 108 | 4 6 8 1 . 11 6 7 . . 13 1 . 7 . 14 5 7 12 6 Fast Attach 157 | 7 2 2 . . 8 10 3 . . 9 2 3 13 . 34 15 34 10 5 Attach 74 | . . . 1 . 3 8 1 . . 10 1 3 3 . 17 5 4 9 9 Detach 53 | . 2 . . . 2 2 1 . . 4 1 3 2 . 16 3 7 4 6 Swap 45 | . 4 2 . 2 12 5 5 . . 8 . . . . 1 1 4 1 . Drop 128 | . 6 8 1 1 23 8 13 . . 11 2 . 6 . 2 13 12 19 3 Fire 511 | 2 48 14 . 12 44 90 17 . . 50 . . 33 7 93 33 17 42 9 Melee 34 | . . . . . . . . . . . . . . . 24 . . . 10 Ram 5 | . . . . . . . . . . 2 . . 2 . . . . . 1 Kick . | . . . . . . . . . . . . . . . . . . . . Crush 36 | . 3 1 . . 1 . 4 . . . . . . . . 23 . . 4 Escape Stasis 41 | . . . . . . 18 . . . . . . . . . . 23 . . Rewire 4 | . . . . . . 2 . . . . . . . . . . . 2 . Trap . | . . . . . . . . . . . . . . . . . . . . Miscellaneous 1 | . . . . . . . . . . . . . 1 . . . . . . Route ------- -11/Scrapyard -10/Materials (discovered 4 exits: [*Mat x3] / *Min) -10/Mines (discovered 3 exits: [*Mat x2] / *Exi) -10/Exiles (discovered 2 exits: *Min x2) -9/Mines -8/Materials -8/Garrison (discovered 4 exits: *Sto x4) -8/Storage (discovered 2 exits: [*Fac] / *Rec) -8/Recycling (discovered 2 exits: *Fac / *Scr) -8/Scraptown -6/Factory (discovered 2 exits: *Fac / *Low) -6/Waste -6/Factory -6/Lower Caves -6/Lower Caves -5/Factory -4/Factory -3/Research -3/Armory -2/Research History --------- Turn | Location | Event 10 | -11/Scrapyard | Discovered new exit (range 16) 134 | -11/Scrapyard | Entered Materials 135 | -10/Materials | Met a group of wandering Federalists 321 | -10/Materials | Build established: Mutant 444 | -10/Materials | Discovered new exit (range 12) 613 | -10/Materials | Discovered new exit (range 10) 926 | -10/Materials | Discovered new exit (range 7) 1276 | -10/Materials | Discovered new exit (range 16) 1452 | -10/Materials | Entered Mines 1470 | -10/Mines | Learned location of Storage (-8) 1494 | -10/Mines | Found a Scrap Suit stashed away for nefarious purposes 1497 | -10/Mines | Found Scrap Suit 1770 | -10/Mines | Joined a pair of Derelicts in attacking an 0b10 outpost 2036 | -10/Mines | Discovered new exit (range 13) 2070 | -10/Mines | Discovered new exit (range 5) 2158 | -10/Mines | Deemed a non-threat by the Exiles lab entrance 2160 | -10/Mines | Discovered new exit (range 5) 2225 | -10/Mines | Met a Derelict shopkeep closing up shop 2314 | -10/Mines | Found a damaged Exp. Sensor Array with a note attached 2317 | -10/Mines | Found Prototype Device 2317 | -10/Mines | Identified Exp. Sensor Array 2340 | -10/Mines | Entered Exiles 2361 | -10/Exiles | Discovered new exit (range 15) 2379 | -10/Exiles | Met 8R-AWN 2416 | -10/Exiles | Met EX-HEX 2470 | -10/Exiles | Met EX-BIN 2499 | -10/Exiles | Aligned with FarCom system 2500 | -10/Exiles | Given EX-Vault access code 2539 | -10/Exiles | Opened EX-Vault 2552 | -10/Exiles | Found Superbattery 2586 | -10/Exiles | Warned to stay clear of 0b10 Research branches 2641 | -10/Exiles | Met EX-DEC 2650 | -10/Exiles | Learned location of Zion (-6) 2714 | -10/Exiles | Discovered new exit (range 10) 2727 | -10/Exiles | Left Exiles lab with Superbattery 2727 | -10/Exiles | Entered Mines 2837 | -9/Mines | Met a Derelict who couldn't figure out how to use a Trap Extractor 2950 | -9/Mines | Learned Materials stockpile data 3006 | -9/Mines | Received a Mining Laser from a helpful Derelict 3142 | -9/Mines | Met a Derelict testing a Signal Generator 3144 | -9/Mines | Discovered new exit (range 5) 3196 | -9/Mines | Entered Materials 3196 | -8/Materials | Evolved 4 slots: Utility x3, Weapon x1 3811 | -8/Materials | Build established: Scavenger-Skirmisher 3831 | -8/Materials | Garrison activated, responded to threat 4438 | -8/Materials | Identified exit to Garrison 4440 | -8/Materials | Entered Garrison 4444 | -8/Garrison | Triggered checkpoint 4818 | -8/Garrison | Triggered checkpoint 4857 | -8/Garrison | Garrison Relay disabled 5038 | -8/Garrison | Triggered checkpoint 5250 | -8/Garrison | Discovered new exit (range 13) 5276 | -8/Garrison | Build established: Skirmisher 5310 | -8/Garrison | Triggered checkpoint 5382 | -8/Garrison | Garrison Relay disabled 5456 | -8/Garrison | Triggered checkpoint 5497 | -8/Garrison | Core integrity fell below 50% 5562 | -8/Garrison | Lost 9 parts (1p2n2u4w) 5577 | -8/Garrison | Discovered new exit (range 5) 5714 | -8/Garrison | Triggered checkpoint 5836 | -8/Garrison | Build established: Scavenger-Tank 5932 | -8/Garrison | Discovered new exit (range 10) 5996 | -8/Garrison | Garrison Relay disabled 6054 | -8/Garrison | Triggered checkpoint 6128 | -8/Garrison | Triggered checkpoint 6165 | -8/Garrison | Build established: Scavenger-Skirmisher 6233 | -8/Garrison | Discovered new exit (range 9) 6275 | -8/Garrison | Installed Relay Interface Framework 6412 | -8/Garrison | Garrison Relay disabled 6536 | -8/Garrison | Entered Storage 6648 | -8/Storage | Met 01-MTF 7057 | -8/Storage | Assisted by bots powering up and referring to "LRC-V3" 7217 | -8/Storage | Core integrity fell below 20% 7360 | -8/Storage | Build established: Commander-Skirmisher 7427 | -8/Storage | Discovered new exit (range 3) 7546 | -8/Storage | Discovered new exit (range 16) 7762 | -8/Storage | Entered Recycling 7762 | -8/Recycling | Accompanied by 9 allies (01-MTF) 8284 | -8/Recycling | Discovered new exit (range 16) 8729 | -8/Recycling | Scanned before Scraplab entrance 8801 | -8/Recycling | Lost 3 allies 8838 | -8/Recycling | Entered Scraplab 8857 | -8/Recycling | Discovered new exit (range 2) 8862 | -8/Recycling | Entered Scraptown 8862 | -8/Scraptown | Accompanied by 6 allies 8862 | -8/Scraptown | System corruption cleaned by C-Scrubber 9141 | -8/Scraptown | Turned away by UFD registrar 9149 | -8/Scraptown | Build established: Commander-Gunner 9192 | -8/Scraptown | Visited Cyclists 9257 | -8/Scraptown | Visited TADAMA 9334 | -8/Scraptown | Heard Great Nut preacher, LISTEN AND RECITE! 9406 | -8/Scraptown | Discovered new exit (range 3) 9429 | -8/Scraptown | Entered Factory 9429 | -6/Factory | Accompanied by 6 allies 9429 | -6/Factory | Evolved 4 slots: Power x1, Utility x3 9517 | -6/Factory | Lost 6 allies 9753 | -6/Factory | Garrison activated, responded to threat 9774 | -6/Factory | Build established: Scavenger-Gunner 9800 | -6/Factory | Fabricated Huge Storage Unit (x1) 10090 | -6/Factory | Discovered new exit (range 15) 10218 | -6/Factory | Lost 3 parts (2n1u) 10439 | -6/Factory | Lost 3 parts (1n1u1w) 10503 | -6/Factory | Discovered new exit (range 6) 10571 | -6/Factory | Sucked down chute 10571 | -6/Factory | Entered Waste 10572 | -6/Waste | Met a frightened Derelict 10628 | -6/Waste | Spotted C-40 Crusher 10638 | -6/Waste | Spotted C-40 Crusher 10639 | -6/Waste | Spotted C-40 Crusher 10645 | -6/Waste | Crushed by Compactor (1 part destroyed, 1 dropped) 10645 | -6/Waste | Spotted C-40 Crusher 10648 | -6/Waste | Crushed by Compactor (1 part destroyed, 2 dropped) 10653 | -6/Waste | Crushed by Compactor (1 part destroyed, 2 dropped) 10653 | -6/Waste | Crushed by Compactor (1 part destroyed, 1 dropped) 10653 | -6/Waste | Released all parts (5) 10669 | -6/Waste | Spotted C-40 Crusher 10671 | -6/Waste | Discovered new exit (range 14) 10677 | -6/Waste | Spotted C-40 Crusher 10684 | -6/Waste | Lost 5 parts (1p2n1u1w) 10718 | -6/Waste | Entered Factory 10778 | -6/Factory | Fabricated Huge Storage Unit? 10888 | -6/Factory | Discovered new exit (range 9) 10938 | -6/Factory | Build established: Mutant 11025 | -6/Factory | Released all parts (4) 11046 | -6/Factory | Core integrity fell below 50% 11054 | -6/Factory | Entered Lower Caves 11132 | -6/Lower Caves | Identified exit to Lower Caves 11380 | -6/Lower Caves | Encountered a Warlord checkpoint 11686 | -6/Lower Caves | Build established: Derelict-Mutant 11978 | -6/Lower Caves | Learned Factory terminal intel 11997 | -6/Lower Caves | Activated DRS Beacon 12209 | -6/Lower Caves | Entered another Lower Caves area 12249 | -6/Lower Caves | Discovered new exit (range 4) 12256 | -6/Lower Caves | Entered Factory 12256 | -5/Factory | Evolved 2 slots: Utility x1, Weapon x1 12257 | -5/Factory | Loaded intel: 28 terminal locations 12257 | -5/Factory | Lost 3 parts (1p2u) 13163 | -5/Factory | Lost 4 parts (2u2w) 13450 | -5/Factory | Build established: Scavenger-Mutant 13642 | -5/Factory | Lost 3 parts (1p1n1w) 14093 | -5/Factory | Lost 3 parts (1p2u) 14190 | -5/Factory | Lost 3 parts (2u1w) 14329 | -5/Factory | System corruption reached 10% 14398 | -5/Factory | Lost 5 parts (2n1u2w) 14516 | -5/Factory | Lost 4 parts (1p1n2u) 14912 | -5/Factory | Build established: Scavenger-Gunner 15740 | -5/Factory | Core integrity fell below 50% 15783 | -5/Factory | Released all parts (4) 15814 | -5/Factory | Lost 14 parts (2p2n5u5w) 15825 | -5/Factory | Discovered new exit (range 15) 15831 | -5/Factory | Entered another Factory area 15831 | -4/Factory | Evolved 2 slots: Propulsion x2 16035 | -4/Factory | Build established: Mutant 16435 | -4/Factory | Lost 7 parts (2n4u1w) 16485 | -4/Factory | Discovered new exit (range 15) 16491 | -4/Factory | Found Unknown Device 16491 | -4/Factory | Identified Quantum Capacitor 16536 | -4/Factory | Entered Research 16536 | -3/Research | Evolved 2 slots: Propulsion x2 16571 | -3/Research | Build established: Hacker-Mutant 16581 | -3/Research | Found Gamma Bomb Array 16953 | -3/Research | Build established: Hacker-Gunner 17345 | -3/Research | Discovered new exit (range 5) 17356 | -3/Research | Found Prototype Device 17356 | -3/Research | Identified Adv. Kinecellerator 17362 | -3/Research | Entered Armory 17489 | -3/Armory | Energy Cycler disabled 17735 | -3/Armory | Found Prototype Hackware 17735 | -3/Armory | Identified Exp. Hacking Suite 17795 | -3/Armory | P-80 Master assimilated allied Swordsman 8b 17873 | -3/Armory | Build established: Scavenger-Gunner 18052 | -3/Armory | Discovered new exit (range 10) 18056 | -3/Armory | Lost 3 parts (1u2w) 18097 | -3/Armory | Released all parts (6) 18103 | -3/Armory | Core integrity fell below 50% 18103 | -3/Armory | Entered Research 18103 | -2/Research | Evolved 2 slots: Power x1, Utility x1 18113 | -2/Research | Destroyed 9 combat bots 18128 | -2/Research | Lost 14 parts (2p4n3u5w) 18223 | -2/Research | Found Prototype Device 18223 | -2/Research | Identified Imp. Particle Accelerator 18309 | -2/Research | Spotted B-90 Cyclops 18311 | -2/Research | Released all parts (5) 18380 | -2/Research | Core integrity fell below 50% 18390 | -2/Research | Build established: Mutant 18390 | -2/Research | Core integrity fell below 20% 18418 | -2/Research | Destroyed by S-43 Plague with Heavy Machine Gun Last Messages --------------- 18335_ K-01 Serf cleans the Quantum Generator. 18336_ K-01 Serf collects debris. 18336_ Acquired Force Lance. 18337_ Slug penetrates Wall. 18337_ U-05 Engineer builds a Door. 18337_ R-10 Processor collects Med. Matter Pod. 18338_ ALERT: Hostiles spotted, dispatching reinforcements to Terminal R002. 18340_ Slug penetrates Wall. 18344_ Xenon Bombardment Thruster destroyed. 18344_ Slug penetrates Wall. 18348_ U-05 Engineer builds a Wall. 18355_ K-01 Serf cleans the Reaction Chamber. 18358_ Detecting nearby Garrison Access. 18375_ C-30 ARC bursts open, deploying its payload. 18375_ S-43 Plague unfolds itself. 18380_ ALERT: Hostiles spotted, dispatching reinforcements to Terminal R013. 18394_ K-01 Serf cleans the Recycling Unit. 18416_ Reaction Chamber disabled. Map ----- +----------------------------------------------------+ | | | | | | | | | | | | | | | | | | | | | | | | | | | | | | | | | | | ?????????????????##########??????????????????????? | | ???????????????? #?????????????????????? | | ????????????????? #?????????????????????? | | ??????????????# """ """ #?????????????????????? | | ??????????????# """ """ #?????????????????????? | | ??????????????# """ """ #?????????????????????? | | ??????????????# #?????????????????????? | | ??????????????# ggg #?????????????????????? | | ??????????????# """ g"" @ #?????????????????????? | | ??????????????# """ """ s#?????????????????????? | | ??????????????# """ s"""ss#?????????????????????? | | ??????????????# spp #???###########???????? | | ??????????????# s #???# """"" #???????? | | ??????????????#######+########## """"" #???????? | | ??????????????????# p / """"" #???????? | | ??????????????????# ##+###### #???????? | | ??????????????????# # ???# #???????? | | ??????????????????+ # =?# #???????? | | ??????????????????# # ## #???????? | | ??????????????????# # ## * #???????? | | ??????????????#+###h #############/#######?????? | | ?????????????? | | ????????????? | | ???????????? h | | ???????????? | | ??????? ???" ###########/###############+###### | | ??????" """ # #???????????????????? | | ??????? """ # #???????????????????? | | ???????? # #???????????????????? | | ?????????= # ! """ #???????????????????? | | ?????????? + """ #???????????????????? | | ??????????? # "" """ #???????????????????? | | ???????????# # "" """ #???????????????????? | +----------------------------------------------------+ Best States ------------- Heat Dissipation 103 Coolant Potential 100 Energy Generation 39 Energy Capacity 455 Matter Stores 300 Matter Capacity 300 Sight Range 22 Robot Scan Range 20 Terrain Scan Range 16 Terrain Scan Density 10 Armor Coverage 375 Resistance: TH 25 Weapon Cycling 25 Evasion (%) 70 Targeting Accuracy 14 Target Analysis 6 Recoil Reduction 4 Energy Filtering 50 Particle Charging 37 Salvage Targeting 8 Offensive Hacking 28 Defensive Hacking 12 Item Schematics ----------------- Huge Storage Unit | -10/Materials | Hacked Imp. Terrain Scanner | -8/Recycling | Hacked Robot Schematics ------------------ None Fabricated ------------ Huge Storage Unit | x1 | -6/Factory Huge Storage Unit | x1 | -6/Factory Repaired ---------- Nothing Studied --------- None Alien Tech Used ----------------- None Achievements -------------- Frienemies Challenges ------------ None Game ------ Seed GhostFusionThruster Manual? 0 Play Time 02:37:55 Cumulative 124.3 hours Start 2026.06.22 @ 20:23:54 End 2026.06.22 @ 23:47:58 Sessions 1 Manual Loads 0 Difficulty Rogue Special Mode None Game No. 110 Rogue 110 Adventurer 0 Explorer 0 Win Type - Total 2 Types 2/0/0/0/0/0/0/0/0/0 Lore% 40 Gallery% 46 Achievement% 33 Wizard Run 0 Options --------- Layout 0 ASCII 0 Keyboard 1 Movement Numpad Keybinds 0 Fullscreen 2 Font 24/Smallcaps Map View 76x50 Zoom Use 0% Tactical HUD 1 Map Filters NONE Filters NONE Steam 1 RUN: 220e1539-caa6-48d8-bb9c-2f91823bf85d